[Event "Titled Tuesday Blitz March 28 Early 2023"]
[White "Salemgareev, Tagir"]
[Black "Yaniuk, Volodymyr"]
[WhiteFideId "24199052"]
[BlackFideId "14133083"]
[WhiteElo "2366"]
[BlackElo "2141"]
[Result "1/2-1/2"]
[Round "06"]
[TimeControl "180+2"]
[Date "2023.03.28"]
[WhiteClock "0:00:12"]
[BlackClock "0:01:17"]

1. d4 {[%clk 0:02:28]}  d5 {[%clk 0:02:59]} 2. c4 {[%clk 0:02:28]}  e6 {[%clk 0:02:59]} 3. Nf3 {[%clk 0:02:28]}  Nf6 {[%clk 0:02:59]} 4. g3 {[%clk 0:02:27]}  Be7 {[%clk 0:02:59]} 5. Bg2 {[%clk 0:02:28]}  O-O {[%clk 0:03:00]} 6. O-O {[%clk 0:02:28]}  dxc4 {[%clk 0:02:56]} 7. Qc2 {[%clk 0:02:27]}  a5 {[%clk 0:02:53]} 8. Qxc4 {[%clk 0:02:26]}  c6 {[%clk 0:02:53]} 9. Rd1 {[%clk 0:02:24]}  Na6 {[%clk 0:02:50]} 10. Bf4 {[%clk 0:02:24]}  Qb6 {[%clk 0:02:44]} 11. Nc3 {[%clk 0:02:22]}  Nd5 {[%clk 0:02:41]} 12. Na4 {[%clk 0:02:18]}  Qb5 {[%clk 0:02:37]} 13. Qxb5 {[%clk 0:02:15]}  cxb5 {[%clk 0:02:38]} 14. Nc3 {[%clk 0:02:16]}  b4 {[%clk 0:02:32]} 15. Nxd5 {[%clk 0:01:56]}  exd5 {[%clk 0:02:33]} 16. Rac1 {[%clk 0:01:54]}  Be6 {[%clk 0:02:30]} 17. Ng5 {[%clk 0:01:53]}  Rac8 {[%clk 0:02:26]} 18. Nxe6 {[%clk 0:01:39]}  fxe6 {[%clk 0:02:26]} 19. e4 {[%clk 0:01:40]}  Rxc1 {[%clk 0:02:05]} 20. Rxc1 {[%clk 0:01:38]}  Rd8 {[%clk 0:02:05]} 21. exd5 {[%clk 0:01:32]}  exd5 {[%clk 0:02:06]} 22. Bh3 {[%clk 0:01:29]}  Bf6 {[%clk 0:02:03]} 23. Be3 {[%clk 0:01:24]}  Nb8 {[%clk 0:01:56]} 24. Rc7 {[%clk 0:00:24]}  Nc6 {[%clk 0:01:54]} 25. Rxb7 {[%clk 0:00:19]}  Nxd4 {[%clk 0:01:53]} 26. Ra7 {[%clk 0:00:15]}  Nf3+ {[%clk 0:01:29]} 27. Kg2 {[%clk 0:00:13]}  Ng5 {[%clk 0:01:29]} 28. Bxg5 {[%clk 0:00:13]}  Bxg5 {[%clk 0:01:29]} 29. Rxa5 {[%clk 0:00:13]}  Bf6 {[%clk 0:01:27]} 30. b3 {[%clk 0:00:07]}  d4 {[%clk 0:01:25]} 31. Be6+ {[%clk 0:00:06]}  Kf8 {[%clk 0:01:25]} 32. Bc4 {[%clk 0:00:02]}  d3 {[%clk 0:01:25]} 33. Rd5 {[%clk 0:00:03]}  Rxd5 {[%clk 0:01:23]} 34. Bxd5 {[%clk 0:00:04]}  d2 {[%clk 0:01:24]} 35. Bf3 {[%clk 0:00:04]}  Ke7 {[%clk 0:01:23]} 36. Kf1 {[%clk 0:00:04]}  Kd6 {[%clk 0:01:22]} 37. Ke2 {[%clk 0:00:05]}  Bd4 {[%clk 0:01:23]} 38. Kxd2 {[%clk 0:00:03]}  Bxf2 {[%clk 0:01:23]} 39. Kd3 {[%clk 0:00:03]}  Bg1 {[%clk 0:01:20]} 40. h3 {[%clk 0:00:03]}  Kc5 {[%clk 0:01:19]} 41. g4 {[%clk 0:00:04]}  Bf2 {[%clk 0:01:18]} 42. Ke4 {[%clk 0:00:05]}  h6 {[%clk 0:01:16]} 43. Ke5 {[%clk 0:00:05]}  Bd4+ {[%clk 0:01:15]} 44. Kf5 {[%clk 0:00:06]}  Bf6 {[%clk 0:01:14]} 45. Kg6 {[%clk 0:00:06]}  Kd4 {[%clk 0:01:14]} 46. Bc6 {[%clk 0:00:06]}  Kc3 {[%clk 0:01:14]} 47. Kh5 {[%clk 0:00:05]}  Kb2 {[%clk 0:01:14]} 48. h4 {[%clk 0:00:06]}  Kxa2 {[%clk 0:01:14]} 49. Bd5 {[%clk 0:00:06]}  Kb2 {[%clk 0:01:13]} 50. Bc4 {[%clk 0:00:07]}  Kc3 {[%clk 0:01:13]} 51. g5 {[%clk 0:00:07]}  hxg5 {[%clk 0:01:13]} 52. hxg5 {[%clk 0:00:08]}  Be5 {[%clk 0:01:13]} 53. Kg6 {[%clk 0:00:08]}  Kd4 {[%clk 0:01:13]} 54. Kf5 {[%clk 0:00:09]}  Bd6 {[%clk 0:01:12]} 55. Kg6 {[%clk 0:00:08]}  Bf4 {[%clk 0:01:11]} 56. Kxg7 {[%clk 0:00:08]}  Bxg5 {[%clk 0:01:12]} 57. Kf7 {[%clk 0:00:08]}  Bd2 {[%clk 0:01:12]} 58. Kg8 {[%clk 0:00:08]}  Bc3 {[%clk 0:01:13]} 59. Kf7 {[%clk 0:00:09]}  Ke3 {[%clk 0:01:14]} 60. Kg8 {[%clk 0:00:10]}  Kd2 {[%clk 0:01:15]} 61. Kf7 {[%clk 0:00:11]}  Kc2 {[%clk 0:01:16]} 62. Kg8 {[%clk 0:00:12]}  Kb2 {[%clk 0:01:17]} 1/2-1/2


[Site "https://www.chess.com"]

[Event "Titled Tuesday Blitz March 28 Early 2023"]
[White "Karolczuk, Iwo"]
[Black "Jeet, Jain"]
[WhiteFideId "21816972"]
[BlackFideId "5073022"]
[WhiteElo "2348"]
[BlackElo "2067"]
[Result "0-1"]
[Round "06"]
[TimeControl "180+2"]
[Date "2023.03.28"]
[WhiteClock "0:00:01"]
[BlackClock "0:00:43"]

1. e4 {[%clk 0:03:00]}  Nc6 {[%clk 0:02:57]} 2. d4 {[%clk 0:02:52]}  d6 {[%clk 0:02:57]} 3. Nf3 {[%clk 0:02:49]}  Bg4 {[%clk 0:02:57]} 4. c3 {[%clk 0:02:43]}  e5 {[%clk 0:02:56]} 5. d5 {[%clk 0:02:42]}  Nce7 {[%clk 0:02:56]} 6. h3 {[%clk 0:02:42]}  Bd7 {[%clk 0:02:56]} 7. Bd3 {[%clk 0:02:40]}  g6 {[%clk 0:02:56]} 8. c4 {[%clk 0:02:40]}  Bg7 {[%clk 0:02:56]} 9. Nc3 {[%clk 0:02:40]}  Nf6 {[%clk 0:02:56]} 10. Be3 {[%clk 0:02:27]}  a6 {[%clk 0:02:56]} 11. g4 {[%clk 0:02:27]}  h5 {[%clk 0:02:52]} 12. g5 {[%clk 0:02:27]}  Nh7 {[%clk 0:02:52]} 13. Qd2 {[%clk 0:02:23]}  O-O {[%clk 0:02:52]} 14. Nh4 {[%clk 0:02:19]}  Rb8 {[%clk 0:02:48]} 15. b4 {[%clk 0:02:18]}  c6 {[%clk 0:02:48]} 16. Rc1 {[%clk 0:01:43]}  cxd5 {[%clk 0:02:42]} 17. cxd5 {[%clk 0:01:41]}  b5 {[%clk 0:02:37]} 18. Ne2 {[%clk 0:01:36]}  Nc8 {[%clk 0:02:29]} 19. Ng3 {[%clk 0:01:27]}  Ne7 {[%clk 0:02:18]} 20. f4 {[%clk 0:01:05]}  exf4 {[%clk 0:02:12]} 21. Bxf4 {[%clk 0:01:06]}  Rb6 {[%clk 0:02:10]} 22. O-O {[%clk 0:00:59]}  f6 {[%clk 0:02:10]} 23. gxf6 {[%clk 0:00:55]}  Bxf6 {[%clk 0:02:10]} 24. Nf3 {[%clk 0:00:42]}  Bxh3 {[%clk 0:02:10]} 25. Rf2 {[%clk 0:00:42]}  Bg4 {[%clk 0:02:08]} 26. Be3 {[%clk 0:00:42]}  Rb8 {[%clk 0:02:07]} 27. Nd4 {[%clk 0:00:43]}  Rc8 {[%clk 0:02:03]} 28. Nc6 {[%clk 0:00:42]}  Nxc6 {[%clk 0:02:00]} 29. dxc6 {[%clk 0:00:43]}  Be5 {[%clk 0:02:00]} 30. Bf4 {[%clk 0:00:37]}  Qh4 {[%clk 0:01:55]} 31. Bxe5 {[%clk 0:00:25]}  dxe5 {[%clk 0:01:55]} 32. Rxf8+ {[%clk 0:00:25]}  Rxf8 {[%clk 0:01:52]} 33. Qg2 {[%clk 0:00:20]}  Rf3 {[%clk 0:01:48]} 34. Nf1 {[%clk 0:00:09]}  Rxd3 {[%clk 0:01:47]} 35. c7 {[%clk 0:00:09]}  Bc8 {[%clk 0:01:03]} 36. Qxg6+ {[%clk 0:00:09]}  Kh8 {[%clk 0:01:04]} 37. Qe8+ {[%clk 0:00:08]}  Kg7 {[%clk 0:01:04]} 38. Qxc8 {[%clk 0:00:06]}  Qg5+ {[%clk 0:01:05]} 39. Kh1 {[%clk 0:00:03]}  Qxc1 {[%clk 0:01:03]} 40. Qf5 {[%clk 0:00:01]}  Qxc7 {[%clk 0:00:59]} 41. Qxh5 {[%clk 0:00:02]}  Qe7 {[%clk 0:00:46]} 42. Qg4+ {[%clk 0:00:02]}  Qg5 {[%clk 0:00:46]} 43. Qe6 {[%clk 0:00:01]}  Qh6+ {[%clk 0:00:43]} 0-1


[Site "https://www.chess.com"]

[Event "Titled Tuesday Blitz March 28 Early 2023"]
[White "Harshavardhan G B"]
[Black "Girya, Olga"]
[WhiteFideId "25059009"]
[BlackFideId "4195752"]
[WhiteElo "2323"]
[BlackElo "2263"]
[Result "1-0"]
[Round "06"]
[TimeControl "180+2"]
[Date "2023.03.28"]
[WhiteClock "0:00:22"]
[BlackClock "0:00:03"]

1. e4 {[%clk 0:03:00]}  e5 {[%clk 0:02:59]} 2. Nc3 {[%clk 0:02:56]}  Nf6 {[%clk 0:02:50]} 3. Bc4 {[%clk 0:02:52]}  Bc5 {[%clk 0:02:46]} 4. d3 {[%clk 0:02:51]}  O-O {[%clk 0:02:44]} 5. Bg5 {[%clk 0:02:49]}  c6 {[%clk 0:02:34]} 6. Nf3 {[%clk 0:02:44]}  d6 {[%clk 0:02:32]} 7. h3 {[%clk 0:02:42]}  b5 {[%clk 0:02:24]} 8. Bb3 {[%clk 0:02:41]}  Be6 {[%clk 0:02:19]} 9. O-O {[%clk 0:02:29]}  Nbd7 {[%clk 0:02:16]} 10. Bxe6 {[%clk 0:02:14]}  fxe6 {[%clk 0:02:15]} 11. d4 {[%clk 0:02:14]}  exd4 {[%clk 0:02:11]} 12. Nxd4 {[%clk 0:02:15]}  Bxd4 {[%clk 0:01:48]} 13. Qxd4 {[%clk 0:02:16]}  Ne5 {[%clk 0:01:45]} 14. Rad1 {[%clk 0:02:12]}  Nf7 {[%clk 0:01:17]} 15. Be3 {[%clk 0:01:51]}  c5 {[%clk 0:00:57]} 16. Qd3 {[%clk 0:01:42]}  a6 {[%clk 0:00:32]} 17. f4 {[%clk 0:01:39]}  b4 {[%clk 0:00:26]} 18. Ne2 {[%clk 0:01:36]}  Qc7 {[%clk 0:00:23]} 19. c4 {[%clk 0:01:30]}  Qc6 {[%clk 0:00:19]} 20. Ng3 {[%clk 0:01:28]}  Rad8 {[%clk 0:00:18]} 21. Rfe1 {[%clk 0:01:18]}  a5 {[%clk 0:00:15]} 22. Kh2 {[%clk 0:01:15]}  a4 {[%clk 0:00:15]} 23. Qc2 {[%clk 0:01:14]}  Rb8 {[%clk 0:00:12]} 24. b3 {[%clk 0:01:13]}  axb3 {[%clk 0:00:11]} 25. axb3 {[%clk 0:01:14]}  Ra8 {[%clk 0:00:12]} 26. Bf2 {[%clk 0:01:12]}  Nd7 {[%clk 0:00:08]} 27. Rd2 {[%clk 0:00:58]}  Ra3 {[%clk 0:00:06]} 28. Red1 {[%clk 0:00:58]}  Nf6 {[%clk 0:00:05]} 29. Re1 {[%clk 0:00:41]}  e5 {[%clk 0:00:04]} 30. Nf5 {[%clk 0:00:39]}  Re8 {[%clk 0:00:03]} 31. fxe5 {[%clk 0:00:36]}  Nxe5 {[%clk 0:00:03]} 32. Rxd6 {[%clk 0:00:35]}  Qc7 {[%clk 0:00:03]} 33. Bg3 {[%clk 0:00:35]}  Nh5 {[%clk 0:00:02]} 34. Bxe5 {[%clk 0:00:33]}  Rxe5 {[%clk 0:00:02]} 35. Qd1 {[%clk 0:00:33]}  Rxf5 {[%clk 0:00:02]} 36. exf5 {[%clk 0:00:32]}  Ra6 {[%clk 0:00:02]} 37. Re6 {[%clk 0:00:22]}  Nf6 {[%clk 0:00:02]} 38. Kg1 {[%clk 0:00:21]}  Rxd6 {[%clk 0:00:01]} 39. Qxd6 {[%clk 0:00:21]}  Qxd6 {[%clk 0:00:01]} 40. Rxd6 {[%clk 0:00:22]}  Kf7 {[%clk 0:00:02]} 41. Rc6 {[%clk 0:00:21]}  Ne4 {[%clk 0:00:02]} 42. g4 {[%clk 0:00:21]}  Nd2 {[%clk 0:00:02]} 43. Rxc5 {[%clk 0:00:21]}  Nxb3 {[%clk 0:00:03]} 44. Rb5 {[%clk 0:00:21]}  Nd2 {[%clk 0:00:03]} 45. Rxb4 {[%clk 0:00:22]} 1-0


[Site "https://www.chess.com"]

[Event "Titled Tuesday Blitz March 28 Early 2023"]
[White "Santos Ruiz, Miguel"]
[Black "lemayvega"]
[WhiteFideId "22291482"]
[WhiteElo "2504"]
[BlackElo "2541"]
[Result "1-0"]
[Round "06"]
[TimeControl "180+2"]
[Date "2023.03.28"]
[WhiteClock "0:02:17"]
[BlackClock "0:01:23"]

1. e4 {[%clk 0:03:00]}  c5 {[%clk 0:02:58]} 2. Nf3 {[%clk 0:03:00]}  Nc6 {[%clk 0:02:55]} 3. d4 {[%clk 0:02:58]}  cxd4 {[%clk 0:02:55]} 4. Nxd4 {[%clk 0:02:59]}  e5 {[%clk 0:02:55]} 5. Nb5 {[%clk 0:02:58]}  d6 {[%clk 0:02:55]} 6. c4 {[%clk 0:02:58]}  a6 {[%clk 0:02:56]} 7. N5c3 {[%clk 0:02:58]}  Be6 {[%clk 0:02:57]} 8. Nd5 {[%clk 0:02:56]}  Rc8 {[%clk 0:02:58]} 9. Nbc3 {[%clk 0:02:56]}  Be7 {[%clk 0:02:58]} 10. Be3 {[%clk 0:02:56]}  Nf6 {[%clk 0:02:58]} 11. Be2 {[%clk 0:02:50]}  O-O {[%clk 0:02:58]} 12. O-O {[%clk 0:02:50]}  Nd7 {[%clk 0:02:58]} 13. Qd2 {[%clk 0:02:42]}  h6 {[%clk 0:02:57]} 14. Nxe7+ {[%clk 0:02:40]}  Qxe7 {[%clk 0:02:58]} 15. Rad1 {[%clk 0:02:40]}  Rfd8 {[%clk 0:01:40]} 16. Qxd6 {[%clk 0:02:35]}  Qxd6 {[%clk 0:01:35]} 17. Rxd6 {[%clk 0:02:35]}  Kf8 {[%clk 0:01:35]} 18. Rfd1 {[%clk 0:02:29]}  Ke7 {[%clk 0:01:34]} 19. R6d2 {[%clk 0:02:28]}  Na5 {[%clk 0:01:26]} 20. b3 {[%clk 0:02:16]}  b5 {[%clk 0:01:26]} 21. Nd5+ {[%clk 0:02:16]}  Bxd5 {[%clk 0:01:23]} 22. Rxd5 {[%clk 0:02:17]} 1-0


[Site "https://www.chess.com"]

[Event "Titled Tuesday Blitz March 28 Early 2023"]
[White "Mikhailovsky, Vladimir"]
[Black "Shevtchenko, Olesya"]
[WhiteFideId "34105414"]
[BlackFideId "24131890"]
[WhiteElo "2293"]
[BlackElo "2003"]
[Result "1-0"]
[Round "06"]
[TimeControl "180+2"]
[Date "2023.03.28"]
[WhiteClock "0:00:10"]
[BlackClock "0:00:06"]

1. c4 {[%clk 0:02:57]}  Nf6 {[%clk 0:02:58]} 2. Nc3 {[%clk 0:02:57]}  e6 {[%clk 0:02:58]} 3. e4 {[%clk 0:02:57]}  d5 {[%clk 0:02:58]} 4. e5 {[%clk 0:02:57]}  d4 {[%clk 0:02:59]} 5. exf6 {[%clk 0:02:57]}  dxc3 {[%clk 0:02:59]} 6. bxc3 {[%clk 0:02:53]}  Qxf6 {[%clk 0:02:59]} 7. Nf3 {[%clk 0:02:54]}  e5 {[%clk 0:02:55]} 8. Bd3 {[%clk 0:02:55]}  Nc6 {[%clk 0:02:46]} 9. O-O {[%clk 0:02:54]}  Bg4 {[%clk 0:02:44]} 10. Be4 {[%clk 0:02:50]}  Bd6 {[%clk 0:02:36]} 11. Qb3 {[%clk 0:02:23]}  Nd8 {[%clk 0:02:25]} 12. d4 {[%clk 0:02:19]}  Bxf3 {[%clk 0:02:01]} 13. Bxf3 {[%clk 0:02:18]}  exd4 {[%clk 0:02:02]} 14. Re1+ {[%clk 0:02:15]}  Ne6 {[%clk 0:01:47]} 15. Bxb7 {[%clk 0:02:01]}  Rb8 {[%clk 0:01:46]} 16. c5 {[%clk 0:01:41]}  Be5 {[%clk 0:01:21]} 17. Bc6+ {[%clk 0:01:27]}  Ke7 {[%clk 0:01:19]} 18. Qd5 {[%clk 0:01:28]}  Bf4 {[%clk 0:00:56]} 19. Bxf4 {[%clk 0:00:41]}  Qxf4 {[%clk 0:00:52]} 20. Re4 {[%clk 0:00:36]}  Qf6 {[%clk 0:00:36]} 21. cxd4 {[%clk 0:00:11]}  Rhd8 {[%clk 0:00:33]} 22. Qc4 {[%clk 0:00:05]}  Rxd4 {[%clk 0:00:31]} 23. Rxd4 {[%clk 0:00:02]}  Nxd4 {[%clk 0:00:28]} 24. Re1+ {[%clk 0:00:02]}  Kf8 {[%clk 0:00:25]} 25. Bd5 {[%clk 0:00:02]}  g6 {[%clk 0:00:25]} 26. h3 {[%clk 0:00:02]}  Kg7 {[%clk 0:00:23]} 27. Bxf7 {[%clk 0:00:02]}  Rf8 {[%clk 0:00:18]} 28. Re4 {[%clk 0:00:02]}  Nc6 {[%clk 0:00:13]} 29. Bd5 {[%clk 0:00:02]}  Qxf2+ {[%clk 0:00:13]} 30. Kh2 {[%clk 0:00:03]}  Nd8 {[%clk 0:00:07]} 31. Re7+ {[%clk 0:00:03]}  Kh6 {[%clk 0:00:06]} 32. Qc1+ {[%clk 0:00:01]}  Qf4+ {[%clk 0:00:04]} 33. Qxf4+ {[%clk 0:00:01]}  Rxf4 {[%clk 0:00:05]} 34. Rxc7 {[%clk 0:00:02]}  Rd4 {[%clk 0:00:02]} 35. Bg8 {[%clk 0:00:02]}  Kg5 {[%clk 0:00:02]} 36. Rxh7 {[%clk 0:00:01]}  Nc6 {[%clk 0:00:02]} 37. Rc7 {[%clk 0:00:01]}  Ne5 {[%clk 0:00:02]} 38. Rxa7 {[%clk 0:00:02]}  Kf4 {[%clk 0:00:02]} 39. Ra3 {[%clk 0:00:02]}  Rd2 {[%clk 0:00:03]} 40. Rb3 {[%clk 0:00:02]}  Rc2 {[%clk 0:00:03]} 41. Bd5 {[%clk 0:00:02]}  g5 {[%clk 0:00:03]} 42. Rb4+ {[%clk 0:00:02]}  Kf5 {[%clk 0:00:02]} 43. Be4+ {[%clk 0:00:03]}  Kf4 {[%clk 0:00:01]} 44. Bxc2+ {[%clk 0:00:04]}  Ke3 {[%clk 0:00:02]} 45. Re4+ {[%clk 0:00:04]}  Kf2 {[%clk 0:00:02]} 46. Rxe5 {[%clk 0:00:05]}  g4 {[%clk 0:00:03]} 47. Rf5+ {[%clk 0:00:05]}  Ke1 {[%clk 0:00:03]} 48. hxg4 {[%clk 0:00:06]}  Kd2 {[%clk 0:00:03]} 49. c6 {[%clk 0:00:07]}  Kc1 {[%clk 0:00:04]} 50. c7 {[%clk 0:00:08]}  Kb2 {[%clk 0:00:05]} 51. c8=Q {[%clk 0:00:09]}  Ka1 {[%clk 0:00:06]} 52. Qc3+ {[%clk 0:00:09]}  Kxa2 {[%clk 0:00:06]} 53. Ra5# {[%clk 0:00:10]} 1-0


[Site "https://www.chess.com"]

[Event "Titled Tuesday Blitz March 28 Early 2023"]
[White "Karamsetty, Jeevan"]
[Black "Prohaszka, Peter"]
[WhiteFideId "2025337"]
[BlackFideId "726265"]
[WhiteElo "2111"]
[BlackElo "2626"]
[Result "0-1"]
[Round "06"]
[TimeControl "180+2"]
[Date "2023.03.28"]
[WhiteClock "0:00:28"]
[BlackClock "0:01:54"]

1. e4 {[%clk 0:03:00]}  c6 {[%clk 0:02:49]} 2. d4 {[%clk 0:03:00]}  d5 {[%clk 0:02:50]} 3. exd5 {[%clk 0:03:00]}  cxd5 {[%clk 0:02:50]} 4. Bd3 {[%clk 0:03:01]}  Nf6 {[%clk 0:02:51]} 5. c3 {[%clk 0:02:55]}  Nc6 {[%clk 0:02:52]} 6. Bf4 {[%clk 0:02:54]}  Bg4 {[%clk 0:02:51]} 7. Qb3 {[%clk 0:02:54]}  Qd7 {[%clk 0:02:51]} 8. Nd2 {[%clk 0:02:53]}  e6 {[%clk 0:02:52]} 9. Ngf3 {[%clk 0:02:53]}  Bd6 {[%clk 0:02:53]} 10. Bxd6 {[%clk 0:02:52]}  Qxd6 {[%clk 0:02:54]} 11. O-O {[%clk 0:02:52]}  O-O {[%clk 0:02:54]} 12. Rfe1 {[%clk 0:02:49]}  Qc7 {[%clk 0:02:54]} 13. Ne5 {[%clk 0:02:49]}  Nxe5 {[%clk 0:02:54]} 14. Rxe5 {[%clk 0:02:44]}  g6 {[%clk 0:02:55]} 15. Rae1 {[%clk 0:02:41]}  Bf5 {[%clk 0:02:53]} 16. Bxf5 {[%clk 0:02:41]}  gxf5 {[%clk 0:02:53]} 17. h3 {[%clk 0:02:35]}  Kh8 {[%clk 0:02:53]} 18. Qd1 {[%clk 0:02:27]}  Rg8 {[%clk 0:02:52]} 19. Nf3 {[%clk 0:02:24]}  Ne4 {[%clk 0:02:47]} 20. Nd2 {[%clk 0:02:19]}  Rg6 {[%clk 0:02:42]} 21. Nxe4 {[%clk 0:02:17]}  fxe4 {[%clk 0:02:43]} 22. f3 {[%clk 0:01:54]}  f6 {[%clk 0:02:22]} 23. Rxe6 {[%clk 0:01:51]}  Qd7 {[%clk 0:02:21]} 24. Rxf6 {[%clk 0:01:12]}  Rxf6 {[%clk 0:02:21]} 25. fxe4 {[%clk 0:01:12]}  dxe4 {[%clk 0:02:20]} 26. Rxe4 {[%clk 0:01:13]}  Rg8 {[%clk 0:02:20]} 27. Qh5 {[%clk 0:01:10]}  Qf5 {[%clk 0:02:12]} 28. Qxf5 {[%clk 0:01:06]}  Rxf5 {[%clk 0:02:13]} 29. Re7 {[%clk 0:01:07]}  Rfg5 {[%clk 0:02:10]} 30. g4 {[%clk 0:01:04]}  h5 {[%clk 0:02:09]} 31. Rxb7 {[%clk 0:01:04]}  hxg4 {[%clk 0:02:09]} 32. hxg4 {[%clk 0:01:02]}  Rxg4+ {[%clk 0:02:10]} 33. Kf2 {[%clk 0:01:02]}  Re4 {[%clk 0:02:01]} 34. Rxa7 {[%clk 0:00:56]}  Rf8+ {[%clk 0:02:01]} 35. Kg3 {[%clk 0:00:54]}  Re3+ {[%clk 0:01:57]} 36. Kg4 {[%clk 0:00:54]}  Re2 {[%clk 0:01:57]} 37. Rb7 {[%clk 0:00:49]}  Rg2+ {[%clk 0:01:57]} 38. Kh3 {[%clk 0:00:48]}  Rg6 {[%clk 0:01:55]} 39. Rb5 {[%clk 0:00:31]}  Kg7 {[%clk 0:01:55]} 40. a4 {[%clk 0:00:28]}  Rh8+ {[%clk 0:01:54]} 0-1


[Site "https://www.chess.com"]

[Event "Titled Tuesday Blitz March 28 Early 2023"]
[White "Rendle, Thomas E"]
[Black "Jaskolka, Tomasz"]
[WhiteFideId "408760"]
[BlackFideId "1170791"]
[WhiteElo "2428"]
[BlackElo "2155"]
[Result "1-0"]
[Round "06"]
[TimeControl "180+2"]
[Date "2023.03.28"]
[WhiteClock "0:00:57"]
[BlackClock "0:00:11"]

1. Nf3 {[%clk 0:03:00]}  Nf6 {[%clk 0:02:56]} 2. b3 {[%clk 0:02:59]}  d5 {[%clk 0:02:56]} 3. Bb2 {[%clk 0:02:59]}  Bf5 {[%clk 0:02:56]} 4. g3 {[%clk 0:02:51]}  e6 {[%clk 0:02:56]} 5. Bg2 {[%clk 0:02:52]}  c6 {[%clk 0:02:56]} 6. O-O {[%clk 0:02:51]}  Nbd7 {[%clk 0:02:57]} 7. d3 {[%clk 0:02:52]}  Be7 {[%clk 0:02:57]} 8. Nbd2 {[%clk 0:02:52]}  h6 {[%clk 0:02:57]} 9. c4 {[%clk 0:02:52]}  Bg6 {[%clk 0:02:56]} 10. Qc2 {[%clk 0:02:51]}  O-O {[%clk 0:02:56]} 11. a3 {[%clk 0:02:47]}  a5 {[%clk 0:02:56]} 12. Ne5 {[%clk 0:02:47]}  Nxe5 {[%clk 0:02:54]} 13. Bxe5 {[%clk 0:02:48]}  Nd7 {[%clk 0:02:52]} 14. Bc3 {[%clk 0:02:47]}  Bf6 {[%clk 0:02:52]} 15. b4 {[%clk 0:02:40]}  Bxc3 {[%clk 0:02:43]} 16. Qxc3 {[%clk 0:02:40]}  Qf6 {[%clk 0:02:44]} 17. Qxf6 {[%clk 0:02:27]}  Nxf6 {[%clk 0:02:45]} 18. Rfb1 {[%clk 0:02:26]}  axb4 {[%clk 0:02:10]} 19. axb4 {[%clk 0:02:24]}  b5 {[%clk 0:01:56]} 20. cxb5 {[%clk 0:02:19]}  cxb5 {[%clk 0:01:55]} 21. Nb3 {[%clk 0:02:19]}  Nd7 {[%clk 0:01:52]} 22. Nd4 {[%clk 0:02:17]}  Rxa1 {[%clk 0:01:08]} 23. Rxa1 {[%clk 0:02:18]}  Rb8 {[%clk 0:01:08]} 24. Ra5 {[%clk 0:02:16]}  Rc8 {[%clk 0:01:08]} 25. f4 {[%clk 0:01:58]}  e5 {[%clk 0:00:54]} 26. fxe5 {[%clk 0:01:57]}  Nxe5 {[%clk 0:00:55]} 27. Bxd5 {[%clk 0:01:23]}  Rc1+ {[%clk 0:00:52]} 28. Kg2 {[%clk 0:01:22]}  Ng4 {[%clk 0:00:53]} 29. Bf3 {[%clk 0:01:21]}  Ne3+ {[%clk 0:00:52]} 30. Kf2 {[%clk 0:01:20]}  Nd1+ {[%clk 0:00:37]} 31. Ke1 {[%clk 0:01:09]}  Rb1 {[%clk 0:00:38]} 32. Kd2 {[%clk 0:01:08]}  Nf2 {[%clk 0:00:26]} 33. Rxb5 {[%clk 0:01:06]}  Rd1+ {[%clk 0:00:20]} 34. Ke3 {[%clk 0:01:05]}  Rf1 {[%clk 0:00:19]} 35. Rb8+ {[%clk 0:01:04]}  Kh7 {[%clk 0:00:19]} 36. b5 {[%clk 0:01:03]}  Nd1+ {[%clk 0:00:19]} 37. Kd2 {[%clk 0:01:03]}  Nb2 {[%clk 0:00:19]} 38. b6 {[%clk 0:01:02]}  Na4 {[%clk 0:00:18]} 39. b7 {[%clk 0:01:00]}  Rb1 {[%clk 0:00:19]} 40. Ra8 {[%clk 0:00:59]}  Rb2+ {[%clk 0:00:19]} 41. Ke3 {[%clk 0:00:59]}  Nc3 {[%clk 0:00:19]} 42. b8=Q {[%clk 0:00:57]}  Nd1+ {[%clk 0:00:19]} 43. Kf4 {[%clk 0:00:57]}  Rxb8 {[%clk 0:00:11]} 44. Rxb8 {[%clk 0:00:58]}  f6 {[%clk 0:00:11]} 45. Be4 {[%clk 0:00:57]}  f5 {[%clk 0:00:11]} 1-0


[Site "https://www.chess.com"]